Cogmind - Beta 9.6 @@@ ROGUE MODE // 2020.05.16 @ 05:24:44 Player: Magi163 Result: Destroyed by Y-54 Guardian with Flak Gun Performance ------------- Evolutions (4) 2000 Regions Visited (12) 2400 Robots Destroyed (65) 325 Value Destroyed (1796) 1796 Prototype IDs (9) 180 Alien Tech Used (0) 0 Bonus (34) 34 TOTAL SCORE: 6735 Bonus ------- Follower Combat Kills 228 Aligned with FarCom 300 Friendly Fire -494 Cogmind --------- Core Integrity 0/850 Matter 266/300 Energy 77/160 System Corruption 1% Temperature Cool (4) Movement Treading (160) Location -6/Factory Parts ------- > --- POWER (1) -------- Light Fission Core > --- PROPULSION (3) --- Heavy Treads > --- UTILITY (7) ------ Improved Heat Sink Improved Heat Sink Improved Light Armor Plating > --- WEAPON (4) ------- Precision Beam Rifle Heavy Disruptor Cannon Improved Proton Missile Launcher > --- INVENTORY (4) ---- Cold Fusion Reactor Gatling Laser Magnetic Acceleration Cannon Peak State ------------ > --- POWER ------------ Fission Core > --- PROPULSION ------- Armored Treads Armored Treads Advanced Treads > --- UTILITY ---------- Cryofiber Web Improved Heat Sink Improved Cooling System Small Storage Unit Advanced Targeting Computer Weapon Cycler Hacking Suite > --- WEAPON ----------- Force Rifle Force Rifle Wave Gun Wave Gun > --- INVENTORY -------- Light Fission Core Cold Fusion Reactor Improved Medium Treads Precision Beam Rifle Improved Proton Missile Launcher Power Sword [Rating: 60] Favorites ----------- Power Light Angular Momentum Engine Engine Light Angular Momentum Engine Power Core Light Nuclear Core Reactor Cold Fusion Reactor Propulsion Armored Treads Treads Armored Treads Leg Aluminum Leg Hover Unit Hover Unit Utility Small Storage Unit Device Cryofiber Web Storage Small Storage Unit Processor Targeting Computer Hackware Hacking Suite Protection Light Armor Plating Weapon EM Shotgun Energy Gun EM Shotgun Energy Cannon Heavy Disruptor Cannon Ballistic Gun Light Assault Rifle Launcher Mini Grenade Launcher Special Weapon Mining Laser Slashing Weapon Scythe Build | -11 -10 -10 -9 -9 -9 -8 -8 -8 -7 -6 -6 -6 ------- Run | Scr Mat Min Mat Min Exi Min Mat Sto Fac Fac Was Fac Slots Evolved 8 | . . . 2 . . . 2 . 2 2 . . Power . | . . . . . . . . . . . . . Propulsion 1 | . . . . . . . . . 1 . . . Utility 5 | . . . 1 . . . 1 . 1 2 . . Weapon 2 | . . . 1 . . . 1 . . . . . Parts Attached 103 | 1 9 16 7 . 3 . 10 16 6 27 5 3 Power 13 | . 1 4 1 . . . 2 1 . 3 1 . Engine 7 | . 1 3 1 . . . 1 1 . . . . Core 5 | . . 1 . . . . 1 . . 2 1 . Reactor 1 | . . . . . . . . . . 1 . . Propulsion 13 | . 2 5 2 . . . . . 3 . 1 . Treads 9 | . 2 2 1 . . . . . 3 . 1 . Leg 3 | . . 2 1 . . . . . . . . . Wheel . | . . . . . . . . . . . . . Hover 1 | . . 1 . . . . . . . . . . Flight . | . . . . . . . . . . . . . Utility 32 | . 1 1 1 . 3 . 2 9 . 12 . 3 Device 23 | . . . 1 . 3 . 1 6 . 10 . 2 Storage . | . . . . . . . . . . . . . Processor 4 | . 1 1 . . . . 1 1 . . . . Hackware 1 | . . . . . . . . . . 1 . . Protection 4 | . . . . . . . . 2 . 1 . 1 Artifact . | . . . . . . . . . . . . . Weapon 45 | 1 5 6 3 . . . 6 6 3 12 3 . Energy Gun 16 | 1 3 . 1 . . . 3 1 . 6 1 . Energy Cannon 4 | . 1 1 . . . . . 1 . . 1 . Ballistic Gun 13 | . 1 2 2 . . . 2 3 3 . . . Ballistic Cannon . | . . . . . . . . . . . . . Launcher 10 | . . 1 . . . . 1 1 . 6 1 . Special Weapon 1 | . . 1 . . . . . . . . . . Impact Weapon . | . . . . . . . . . . . . . Slashing Weapon 1 | . . 1 . . . . . . . . . . Piercing Weapon . | . . . . . . . . . . . . . Special Melee Weapon . | . . . . . . . . . . . . . Unidentified Prototypes 7 | . . . . . 2 . . 1 1 3 . . Parts Lost 24 | . 1 7 . . . . 5 3 . 2 6 . Power 4 | . 1 1 . . . . 1 . . 1 . . Propulsion 4 | . . 2 . . . . . . . . 2 . Utility 6 | . . 1 . . . . 2 . . 1 2 . Weapon 10 | . . 3 . . . . 2 3 . . 2 . Highest Loss Streak 6 | . 1 5 . . . . 4 1 . 1 6 . Average Slot Usage (%) 93 | . 95 93 99 100 100 100 96 98 92 97 40 46 Engine 6 | . 13 10 1 11 11 11 5 4 7 1 . . Core 2 | . . 3 9 . . . 3 4 . . 2 6 Treads 18 | . 18 16 21 22 22 22 18 18 23 20 10 6 Leg 1 | . 9 3 . . . . . . . . . . Device 11 | . . . 11 11 11 11 15 12 7 20 9 8 Storage 9 | . 14 14 11 11 11 11 9 9 7 6 2 . Processor 9 | . 11 14 11 11 11 11 9 9 7 6 2 . Hackware 1 | . . . . . . . . . . 4 2 . Protection 1 | . . . . . . . . 4 7 3 . 4 Energy Gun 10 | . 17 3 7 11 11 11 15 12 3 12 9 6 Ballistic Gun 7 | . 9 15 3 . . . 3 13 19 7 . . Launcher 5 | . . 2 11 11 11 11 7 4 7 5 . 6 Slashing Weapon 3 | . . 2 11 11 11 11 9 4 . . . . Naked Turns 18 | . . . . . . . . . . . 18 . Heaviest Build 40 | 11 12 17 25 25 25 25 30 29 30 40 39 38 Greatest Support 70 | 20 40 42 42 42 42 42 42 42 64 62 70 70 Greatest Overweight (x) 1 | . . 1 . . . . . . . . . . Average Overweight (x) . | . . . . . . . . . . . . . Largest Inventory Capacity 6 | 6 6 6 6 6 6 6 6 6 6 6 6 4 Average Capacity 5 | 6 6 6 6 6 6 6 6 6 6 6 4 4 Most Carried 6 | 6 6 6 6 6 6 6 6 6 6 6 6 3 Average Carried 5 | 6 5 5 5 6 5 6 3 5 5 5 4 2 Final Capacity 6 | 6 6 6 6 6 6 6 6 6 6 6 4 4 Final Carried 6 | 6 6 6 6 6 6 6 5 6 6 6 1 3 Class Distribution -------------------- 61% | Mutant 9% | Commander-Skirmisher 8% | Gunner 4% | Skirmisher 4% | Commander-Tank 3% | Scavenger-Skirmisher 3% | Tank Dominant Class ---------------- Mutant | -10/Materials Mutant | -10/Mines Mutant | -9/Materials Mutant | -9/Mines Mutant | -9/Exiles Mutant | -8/Mines Mutant | -8/Materials Commander-Skirmisher | -8/Storage Commander-Skirmisher | -7/Factory Gunner | -6/Factory Mutant | -6/Waste Scavenger-Skirmisher | -6/Factory Resources | -11 -10 -10 -9 -9 -9 -8 -8 -8 -7 -6 -6 -6 ----------- Run | Scr Mat Min Mat Min Exi Min Mat Sto Fac Fac Was Fac Matter Collected 1473 | 210 97 177 12 49 . . 129 184 . 540 . 75 Remotely . | . . . . . . . . . . . . . Salvage Created 2828 | . 225 296 269 52 . . 285 341 . 935 350 75 Parts 148 | . 9 17 18 6 . . 22 21 . 41 10 4 Haulers Intercepted 4 | . . . 1 . . . . 1 . 2 . . Recyclers Shooed 4 | . . 1 . . . . . . . 3 . . Parts Field Recycled . | . . . . . . . . . . . . . Retrieved Matter . | . . . . . . . . . . . . . Parts Self-Destructed . | . . . . . . . . . . . . . Prevented . | . . . . . . . . . . . . . Kills | -11 -10 -10 -9 -9 -9 -8 -8 -8 -7 -6 -6 -6 ------- Run | Scr Mat Min Mat Min Exi Min Mat Sto Fac Fac Was Fac Combat Hostiles Destroyed 42 | . 4 4 4 3 . . 9 6 . 10 1 1 Melee 5 | . . . 1 . . . 3 . . . 1 . Guns 15 | . 2 3 . . . . 2 4 . 4 . . Cannons 4 | . 2 1 . . . . . . . . . 1 AOE 16 | . . . 2 3 . . 4 2 . 5 . . Classes Destroyed 11 | . 2 3 1 . . . 2 . . 2 1 . Worker 4 | . . 2 . . . . . . . 2 . . Builder 6 | . . 1 1 . . . 1 1 . 2 . . Hauler 4 | . . . 1 . . . . 1 . 2 . . Recycler 4 | . 1 1 . . . . 1 . . 1 . . Watcher 2 | . . . . . . . . . . 2 . . Swarmer 12 | . . 2 . 3 . . 7 . . . . . Grunt 19 | . 4 2 4 . . . . 3 . 6 . . Sentry 5 | . . . . . . . 1 3 . . . 1 Hunter 4 | . . . . . . . 1 . . 3 . . Programmer 3 | . . . . . . . . . . 3 . . Compactor 1 | . . . . . . . . . . . 1 . Thug 1 | . . . 1 . . . . . . . . . Best Kill Streak 10 | . 1 3 3 3 . . 6 3 . 10 1 1 Combat Bots Only 5 | . 1 2 2 3 . . 4 3 . 5 1 1 Max Kills in Single Turn 3 | . 1 1 2 2 . . 3 2 . 3 1 1 Gunslinging . | . . . . . . . . . . . . . Exploded 3 | . . . 1 2 . . 3 2 . 2 . . Melee 1 | . . . 1 . . . 1 . . . 1 . Uniques/NPCs Destroyed . | . . . . . . . . . . . . . Combat | -11 -10 -10 -9 -9 -9 -8 -8 -8 -7 -6 -6 -6 -------- Run | Scr Mat Min Mat Min Exi Min Mat Sto Fac Fac Was Fac Damage Taken 3546 | . 571 476 164 47 . . 309 370 . 527 983 99 Core 1121 | . 103 81 44 6 . . . 33 . 34 813 7 Absorbed by Shields . | . . . . . . . . . . . . . Core Remaining (%) 81 | 100 . 26 . . . 87 . 94 100 . . . Volleys Fired 131 | . 25 29 8 4 . . 9 18 . 30 6 2 Largest 4 | . 2 2 1 1 . . 2 3 . 4 4 2 Hottest 322 | . 110 120 36 36 . . 90 164 . 221 322 171 Shots Fired 244 | . 50 44 8 4 . . 13 33 . 66 22 4 Gun 189 | . 43 36 . . . . 11 24 . 51 22 2 Cannon 16 | . 7 3 . . . . . 4 . . . 2 Launcher 37 | . . 3 8 4 . . 2 5 . 15 . . Special 2 | . . 2 . . . . . . . . . . Kinetic 74 | . 15 35 . . . . . 9 . 15 . . Thermal 111 | . 35 6 . . . . . 10 . 36 22 2 Explosive 18 | . . . . . . . 2 5 . 11 . . Electromagnetic 41 | . . 3 8 4 . . 11 9 . 4 . 2 Robot Hit Streak 25 | . 8 11 3 2 . . 8 11 . 19 21 25 Robot Miss Streak 4 | . 4 2 1 1 . . 4 1 . 4 1 . Penetration Max . | . . . . . . . . . . . . . Secondary Targets . | . . . . . . . . . . . . . Shots Hit Robots 183 | . 33 30 6 2 . . 14 27 . 46 21 4 Core Hits 127 | . 12 16 6 3 . . 17 17 . 43 10 3 Critical Hits 3 | . . . . . . . . 1 . 1 . 1 Critical Kills 1 | . . . . . . . . 1 . . . . Critical Parts Destroyed 2 | . . . . . . . . . . 1 . 1 Melee Attacks 13 | . . . 3 . . . 6 4 . . . . Impact . | . . . . . . . . . . . . . Slashing 13 | . . . 3 . . . 6 4 . . . . Piercing . | . . . . . . . . . . . . . Sneak Attacks 2 | . . . . . . . 1 1 . . . . Combat Hostiles . | . . . . . . . . . . . . . Follow-up Attacks . | . . . . . . . . . . . . . Damage Inflicted 5927 | . 359 445 593 88 . . 560 794 . 2396 595 97 Guns 2315 | . 307 216 . . . . 141 356 . 732 528 35 Cannons 210 | . 51 51 . . . . . 46 . . . 62 Explosions 2968 | . . 118 563 88 . . 239 298 . 1662 . . Melee 304 | . . . 30 . . . 180 94 . . . . Ramming 82 | . 1 12 . . . . . . . 2 67 . Kinetic 631 | . 67 202 . . . . . 152 . 210 . . Thermal 1618 | . 291 113 . . . . . 129 . 522 528 35 Explosive 2273 | . . . 329 . . . 239 298 . 1407 . . Electromagnetic 1019 | . . 118 234 88 . . 141 121 . 255 . 62 Impact . | . . . . . . . . . . . . . Slashing 304 | . . . 30 . . . 180 94 . . . . Piercing . | . . . . . . . . . . . . . Highest Corruption 1 | . . . . . . . . . . . 1 1 Average Corruption 1 | . . . . . . . . . . . 1 1 Corruption Purged . | . . . . . . . . . . . . . Effects 2 | . . . . . . . . . . . . 2 Message Errors 2 | . . . . . . . . . . . . 2 Overload Shots . | . . . . . . . . . . . . . Overflow Damage 121 | . . . 46 . . . . . . 75 . . Projectiles . | . . . . . . . . . . . . . Explosions 121 | . . . 46 . . . . . . 75 . . Melee . | . . . . . . . . . . . . . Knockbacks . | . . . . . . . . . . . . . Impact . | . . . . . . . . . . . . . Kinetic . | . . . . . . . . . . . . . Secondary . | . . . . . . . . . . . . . Self-Inflicted Damage 46 | . . 5 . . . . . . . 11 30 . Shots 1 | . . . . . . . . . . 1 . . Rammed 23 | . . 3 . . . . . . . 1 19 . Targets Rammed 24 | . 1 3 . . . . . . . 1 19 . Kicked . | . . . . . . . . . . . . . Crushed 1 | . 1 . . . . . . . . . . . Highest Temperature 403 | . 333 157 . . . . 30 44 . 403 239 102 Average Temperature 105 | . 135 56 . . . . 18 21 . 168 90 46 Received Heat Transfer 861 | . 315 147 66 . . . . 117 . 171 9 36 Effects 1 | . 1 . . . . . . . . . . . Interference 1 | . 1 . . . . . . . . . . . Siege Activations . | . . . . . . . . . . . . . Robots Corrupted 2 | . . . 1 . . . . . . 1 . . Combat Hostiles 2 | . . . 1 . . . . . . 1 . . Parts Fried 4 | . . 1 3 . . . . . . . . . Impact Corruptions . | . . . . . . . . . . . . . Robots Melted . | . . . . . . . . . . . . . Combat Hostiles . | . . . . . . . . . . . . . Parts Melted 7 | . 1 1 . . . . . . . 5 . . Heat Transferred 3060 | . 740 248 . . . . . 333 . 851 814 74 Parts Sabotaged . | . . . . . . . . . . . . . Parts Stolen . | . . . . . . . . . . . . . Parts Stripped . | . . . . . . . . . . . . . Power Chain Reactions 3 | . . 1 . 2 . . . . . . . . Missiles Intercepted . | . . . . . . . . . . . . . Alert | -11 -10 -10 -9 -9 -9 -8 -8 -8 -7 -6 -6 -6 ------- Run | Scr Mat Min Mat Min Exi Min Mat Sto Fac Fac Was Fac Peak Influence 370 | . 138 85 162 163 . . 145 138 12 370 88 81 Average Influence 98 | . 68 32 58 133 . . 46 60 12 226 34 56 Maximum Alert Level 1 | . . . . . . . . . . 1 . . Low Security (%) 80 | 100 100 100 100 100 . 100 100 100 100 30 100 100 Level 1 19 | . . . . . . . . . . 69 . . Level 2 . | . . . . . . . . . . . . . Level 3 . | . . . . . . . . . . . . . Level 4 . | . . . . . . . . . . . . . Level 5 . | . . . . . . . . . . . . . High Security . | . . . . . . . . . . . . . Max Security . | . . . . . . . . . . . . . Squads Dispatched 14 | . 1 . 3 . . . . 3 . 7 . . Investigation 4 | . 1 . 1 . . . . 1 . 1 . . Extermination 3 | . . . . . . . . . . 3 . . Reinforcement 7 | . . . 2 . . . . 2 . 3 . . Assault . | . . . . . . . . . . . . . Garrison . | . . . . . . . . . . . . . Intercept . | . . . . . . . . . . . . . Construction Impeded 1 | . . . . . . . . . . 1 . . Haulers Reinforced 2 | . . . . . . . . . . 2 . . Stealth | -11 -10 -10 -9 -9 -9 -8 -8 -8 -7 -6 -6 -6 --------- Run | Scr Mat Min Mat Min Exi Min Mat Sto Fac Fac Was Fac Distress Signals 10 | . . . . . . . 3 3 . 4 . . Communications Jammed . | . . . . . . . . . . . . . Distress Signals . | . . . . . . . . . . . . . Times Spotted 89 | . 13 5 14 3 . . 13 8 . 25 6 2 Peak Tracking Total 6 | . 5 3 6 3 . . 6 3 . 6 5 1 Tactical Retreats 3 | . 1 . . . . . . 1 . 1 . . Traps | -11 -10 -10 -9 -9 -9 -8 -8 -8 -7 -6 -6 -6 ------- Run | Scr Mat Min Mat Min Exi Min Mat Sto Fac Fac Was Fac Traps Triggered 3 | . . 1 . . . . . 1 . 1 . . Indirectly . | . . . . . . . . . . . . . Trap Hack Attempts . | . . . . . . . . . . . . . Triggered . | . . . . . . . . . . . . . Disarmed 4 | . . . 4 . . . . . . . . . Reprogrammed . | . . . . . . . . . . . . . Reused . | . . . . . . . . . . . . . Traps Extracted . | . . . . . . . . . . . . . Installed . | . . . . . . . . . . . . . Triggered 1 | . . . . . . . . . . 1 . . Power Sources Rigged 4 | . . . . . . . 1 3 . . . . Exploded 3 | . . . . . . . 1 2 . . . . Machines | -11 -10 -10 -9 -9 -9 -8 -8 -8 -7 -6 -6 -6 ---------- Run | Scr Mat Min Mat Min Exi Min Mat Sto Fac Fac Was Fac Machines Disabled 11 | . . . 3 2 . . 1 . . 5 . . Max in Single Turn 2 | . . . 1 2 . . 1 . . 2 . . Garrison Access 1 | . . . . . . . . 1 . . . . Machines Sabotaged . | . . . . . . . . . . . . . Garrisons Compromised . | . . . . . . . . . . . . . Overloaded Fab Kills . | . . . . . . . . . . . . . Fab Network Shutdowns . | . . . . . . . . . . . . . Hacking | -11 -10 -10 -9 -9 -9 -8 -8 -8 -7 -6 -6 -6 --------- Run | Scr Mat Min Mat Min Exi Min Mat Sto Fac Fac Was Fac Machines Accessed 30 | . 5 1 3 . 4 . 2 7 . 7 . 1 Terminals 16 | . 3 . 1 . . . 1 6 . 4 . 1 Fabricators 1 | . . . . . . . . . . 1 . . Repair Stations 1 | . 1 . . . . . . . . . . . Recycling Units 4 | . 1 . 1 . . . . . . 2 . . Scanalyzers 2 | . . . 1 . . . 1 . . . . . Garrison Access 1 | . . . . . . . . 1 . . . . Total Hacks 112 | . 14 1 8 . 48 . 7 18 . 13 . 3 Successful 86 | . 8 1 7 . 48 . 5 10 . 5 . 2 Failed 26 | . 6 . 1 . . . 2 8 . 8 . 1 Catastrophic 5 | . 1 . . . . . . . . 3 . 1 Database Lockouts . | . . . . . . . . . . . . . Manual 21 | . 6 . 2 . 1 . 2 7 . 3 . . Terminals 43 | . 10 . 2 . . . 5 16 . 7 . 3 Fabricators 2 | . . . . . . . . . . 2 . . Repair Stations 2 | . 2 . . . . . . . . . . . Recycling Units 8 | . 2 . 2 . . . . . . 4 . . Scanalyzers 6 | . . . 4 . . . 2 . . . . . Garrison Access 2 | . . . . . . . . 2 . . . . Terminal Hacks 66 | . 3 1 1 . 48 . 2 7 . 2 . 2 Record 48 | . . . . . 48 . . . . . . . Prototype ID Bank 1 | . . . . . . . . 1 . . . . Open Door 3 | . . 1 . . . . . 2 . . . . Branch Access Points 1 | . . . . . . . . . . . . 1 Emergency Access Points 1 | . . . . . . . 1 . . . . . Terminal Index 1 | . 1 . . . . . . . . . . . Alert Level 3 | . . . . . . . 1 1 . . . 1 Unreport Threat 3 | . 1 . . . . . . 1 . 1 . . Disarm Traps 1 | . . . 1 . . . . . . . . . Security Status 1 | . 1 . . . . . . . . . . . Zone Layout 3 | . . . . . . . . 2 . 1 . . Fabricator Hacks 1 | . . . . . . . . . . 1 . . Build 1 | . . . . . . . . . . 1 . . Repair Station Hacks 2 | . 2 . . . . . . . . . . . Scan Component 1 | . 1 . . . . . . . . . . . Repair 1 | . 1 . . . . . . . . . . . Recycling Unit Hacks 4 | . 1 . 1 . . . . . . 2 . . Report Inventory 4 | . 1 . 1 . . . . . . 2 . . Scanalyzer 6 | . . . 4 . . . 2 . . . . . Insert Component 3 | . . . 2 . . . 1 . . . . . Analyze 3 | . . . 2 . . . 1 . . . . . Garrison Access Hacks 1 | . . . . . . . . 1 . . . . Seal Access 1 | . . . . . . . . 1 . . . . Unauthorized Hacks 6 | . 2 . 1 . . . 1 2 . . . . Terminals 4 | . 1 . . . . . 1 2 . . . . Assimilate 1 | . . . . . . . . 1 . . . . Botnet 2 | . 1 . . . . . 1 . . . . . Disrupt 1 | . . . . . . . . 1 . . . . Fabricators . | . . . . . . . . . . . . . Repair Stations . | . . . . . . . . . . . . . Recycling Units 2 | . 1 . 1 . . . . . . . . . Tunnel 2 | . 1 . 1 . . . . . . . . . Scanalyzers . | . . . . . . . . . . . . . Garrison Access . | . . . . . . . . . . . . . Data Cores Recovered 1 | . . . . . . . . . . 1 . . Used . | . . . . . . . . . . . . . Hacking Detections 17 | . 4 . 1 . . . 1 4 . 6 . 1 Full Trace Events 1 | . . . . . . . . 1 . . . . Feedback Events . | . . . . . . . . . . . . . Feedback Blocked . | . . . . . . . . . . . . . Robot Schematics Acquired . | . . . . . . . . . . . . . Robots Built . | . . . . . . . . . . . . . Matter . | . . . . . . . . . . . . . Time . | . . . . . . . . . . . . . Total Robot Build Rating . | . . . . . . . . . . . . . Part Schematics Acquired 3 | . . . 2 . . . 1 . . . . . Parts Built 2 | . . . . . . . . . . 2 . . Matter 212 | . . . . . . . . . . 212 . . Time 53 | . . . . . . . . . . 53 . . Total Part Build Rating 12 | . . . . . . . . . . 12 . . Parts Repaired 1 | . 1 . . . . . . . . . . . Time 32 | . 32 . . . . . . . . . . . Parts Recycled . | . . . . . . . . . . . . . Recycled Matter . | . . . . . . . . . . . . . Retrieved Matter . | . . . . . . . . . . . . . Retrieved Components . | . . . . . . . . . . . . . Parts Scanalyzed 3 | . . . 2 . . . 1 . . . . . Part Schematics Acquired 3 | . . . 2 . . . 1 . . . . . Parts Damaged . | . . . . . . . . . . . . . Bothacking | -11 -10 -10 -9 -9 -9 -8 -8 -8 -7 -6 -6 -6 ------------ Run | Scr Mat Min Mat Min Exi Min Mat Sto Fac Fac Was Fac Used RIF Installer . | . . . . . . . . . . . . . Robots Hacked . | . . . . . . . . . . . . . Non-combat . | . . . . . . . . . . . . . Combat . | . . . . . . . . . . . . . Robot Hacks Applied . | . . . . . . . . . . . . . Relay Couplers Released . | . . . . . . . . . . . . . Robots Rewired . | . . . . . . . . . . . . . Allies Hacked . | . . . . . . . . . . . . . Hacks Repelled . | . . . . . . . . . . . . . Allies | -11 -10 -10 -9 -9 -9 -8 -8 -8 -7 -6 -6 -6 -------- Run | Scr Mat Min Mat Min Exi Min Mat Sto Fac Fac Was Fac Total Allies 12 | . . . . . . . . 11 . . 1 . Largest Group 10 | . . . . . . . . 10 10 10 1 . Highest-Rated Group 173 | . . . . . . . . 173 173 173 31 . Highest-Rated Ally 31 | . . . . . . . . 29 29 29 31 . Total Orders 3 | . . . . . . . . . . 3 . . EXPLORE 2 | . . . . . . . . . . 2 . . RETURN 1 | . . . . . . . . . . 1 . . Ally Attacks 101 | . . . . . . . . 1 . 90 10 . Total Damage 1082 | . . . . . . . . 15 . 942 125 . Kills 11 | . . . . . . . . . . 11 . . Allies Corrupted . | . . . . . . . . . . . . . Allies Melted . | . . . . . . . . . . . . . Intel | -11 -10 -10 -9 -9 -9 -8 -8 -8 -7 -6 -6 -6 ------- Run | Scr Mat Min Mat Min Exi Min Mat Sto Fac Fac Was Fac Robot Analysis Total . | . . . . . . . . . . . . . Derelict Logs Recovered 2 | . . 2 . . . . . . . . . . Drone Launches 3 | . . . . . . . . . . 3 . . Drone Recoveries 1 | . . . . . . . . . . 1 . . Exploration | -11 -10 -10 -9 -9 -9 -8 -8 -8 -7 -6 -6 -6 ------------- Run | Scr Mat Min Mat Min Exi Min Mat Sto Fac Fac Was Fac Turns Passed 5065 | 4 459 858 239 98 490 60 524 637 108 1262 117 209 Spaces Moved 2630 | 3 195 481 119 58 307 33 196 326 63 622 104 123 Core 82 | . . . . . . . . . . . 82 . Treads 2340 | . 129 342 119 58 307 33 196 326 63 622 22 123 Legs 110 | 3 66 41 . . . . . . . . . . Wheels . | . . . . . . . . . . . . . Hover 98 | . . 98 . . . . . . . . . . Flight . | . . . . . . . . . . . . . Fastest Speed 50 | 120 120 120 145 157 157 157 157 157 153 161 50 160 Average Speed 152 | 120 146 149 156 157 157 157 157 157 157 161 73 160 Slowest Speed 170 | 120 160 170 157 157 157 157 157 157 161 161 161 160 Overloaded Moves . | . . . . . . . . . . . . . Propulsion Burnouts . | . . . . . . . . . . . . . Robots Hopped . | . . . . . . . . . . . . . Cave-ins Triggered . | . . . . . . . . . . . . . Exploration Rate (%) 31 | 2 39 82 15 18 63 12 16 51 3 27 79 3 Regions Visited 12 Branch Regions 5 Pre-discovered Areas 4 | . 1 . 1 . 1 . . 1 . . . . Known Exits Taken 1 | . . . . . . . 1 . . . . . Unknown Exits Taken 9 | 1 1 1 1 1 1 1 . 1 1 . . . Scrap Searched 1 | . . . . 1 . . . . . . . . Spaces Dug 18 | . . . . . . . 1 3 . 14 . . Terrain Destroyed 164 | . . 4 9 3 . . 19 47 . 82 . . Melee 4 | . . . . . . . 1 3 . . . . Projectile . | . . . . . . . . . . . . . AOE 160 | . . 4 9 3 . . 18 44 . 82 . . Actions | -11 -10 -10 -9 -9 -9 -8 -8 -8 -7 -6 -6 -6 --------- Run | Scr Mat Min Mat Min Exi Min Mat Sto Fac Fac Was Fac Total 3452 | 3 319 581 160 61 316 41 389 412 72 835 133 130 Wait 438 | . 81 31 8 . . 9 160 26 . 123 . . Move 2619 | 2 194 480 118 57 306 32 195 325 62 622 103 123 Hop . | . . . . . . . . . . . . . Pick Up 52 | . 5 9 8 . 2 . 6 9 . 11 . 2 Fast Attach 40 | . 2 8 2 . 3 . 1 5 2 12 2 3 Attach 23 | . 1 5 2 . . . 5 2 1 4 3 . Detach 4 | . . 1 . . . . . 1 . 2 . . Swap 40 | 1 6 3 3 . . . 4 9 3 11 . . Drop 64 | . 4 12 8 . 5 . 2 10 4 19 . . Fire 131 | . 25 29 8 4 . . 9 18 . 30 6 2 Melee 13 | . . . 3 . . . 6 4 . . . . Ram 21 | . . 2 . . . . . . . . 19 . Kick 1 | . . 1 . . . . . . . . . . Crush 2 | . 1 . . . . . . . . 1 . . Escape Stasis . | . . . . . . . . . . . . . Rewire . | . . . . . . . . . . . . . Trap 4 | . . . . . . . 1 3 . . . . Miscellaneous . | . . . . . . . . . . . . . Route ------- -11/Scrapyard -10/Materials (discovered 2 exits: *Mat / *Min) -10/Mines (discovered 2 exits: *Mat x2) -9/Materials -9/Mines -9/Exiles -8/Mines -8/Materials -8/Storage -7/Factory -6/Factory -6/Waste -6/Factory (discovered 2 exits: Low x2) History --------- Turn | Location | Event 1 | -11/Scrapyard | Discovered new exit (range 2) 5 | -11/Scrapyard | Entered Materials 286 | -10/Materials | Discovered new exit (range 6) 310 | -10/Materials | Build established: Mutant 346 | -10/Materials | Repaired Particle Gun 402 | -10/Materials | Discovered new exit (range 16) 464 | -10/Materials | Entered Mines 479 | -10/Mines | Learned Materials trap positions 495 | -10/Mines | Met a Derelict bent on vengeance 729 | -10/Mines | Core integrity fell below 50% 744 | -10/Mines | Lost 5 parts (1p1n1u2w) 776 | -10/Mines | Discovered new exit (range 8) 1171 | -10/Mines | Met a Derelict who couldn't figure out how to use a Trap Extractor 1309 | -10/Mines | Discovered new exit (range 7) 1322 | -10/Mines | Entered Materials 1322 | -9/Materials | Evolved 2 slots: Utility x1, Weapon x1 1323 | -9/Materials | Loaded intel: 6 trap records 1540 | -9/Materials | Discovered new exit (range 13) 1561 | -9/Materials | Entered Mines 1653 | -9/Mines | Deemed a non-threat by the Exiles lab entrance 1653 | -9/Mines | Discovered new exit (range 5) 1659 | -9/Mines | Entered Exiles 1703 | -9/Exiles | Met 8R-AWN 1729 | -9/Exiles | Met EX-HEX 1790 | -9/Exiles | Met EX-DEC 1801 | -9/Exiles | Learned location of Zion (-6) 1837 | -9/Exiles | Met EX-BIN 1936 | -9/Exiles | Aligned with FarCom system 1937 | -9/Exiles | Given EX-Vault access code 1975 | -9/Exiles | Opened EX-Vault 1982 | -9/Exiles | Found Prototype Device 1982 | -9/Exiles | Identified PSU Rigger 1988 | -9/Exiles | Found Prototype Device 1988 | -9/Exiles | Identified Chronowheel 1988 | -9/Exiles | Activated Chronowheel 2033 | -9/Exiles | Warned to stay clear of 0b10 Research branches 2135 | -9/Exiles | Discovered new exit (range 10) 2149 | -9/Exiles | Left Exiles lab with PSU Rigger 2149 | -9/Exiles | Entered Mines 2202 | -8/Mines | Discovered new exit (range 5) 2209 | -8/Mines | Entered Materials 2209 | -8/Materials | Evolved 2 slots: Utility x1, Weapon x1 2210 | -8/Materials | Identified exit to Storage 2670 | -8/Materials | Lost 4 parts (2u2w) 2733 | -8/Materials | Entered Storage 3129 | -8/Storage | Assisted by bots powering up and referring to "LRC-V3" 3148 | -8/Storage | Learned location of Armory (-3) 3347 | -8/Storage | Discovered new exit (range 8) 3370 | -8/Storage | Entered Factory 3370 | -7/Factory | Accompanied by 10 allies 3370 | -7/Factory | Evolved 2 slots: Propulsion x1, Utility x1 3449 | -7/Factory | Discovered new exit (range 14) 3452 | -7/Factory | Build established: Commander-Skirmisher 3478 | -7/Factory | Entered another Factory area 3478 | -6/Factory | Accompanied by 10 allies 3478 | -6/Factory | Evolved 2 slots: Utility x2 4454 | -6/Factory | Fabricated Wave Gun (x2) 4740 | -6/Factory | Sucked down chute 4740 | -6/Factory | Entered Waste 4741 | -6/Waste | Met a frightened Derelict 4750 | -6/Waste | Spotted C-40 Crusher 4753 | -6/Waste | Spotted C-40 Crusher 4781 | -6/Waste | Crushed by Compactor (1 part destroyed, 1 dropped) 4784 | -6/Waste | Crushed by Compactor (1 part destroyed, 1 dropped) 4784 | -6/Waste | Crushed by Compactor (1 part destroyed, 2 dropped) 4787 | -6/Waste | Crushed by Compactor (1 part destroyed, 2 dropped) 4787 | -6/Waste | Crushed by Compactor (1 part destroyed, 2 dropped) 4790 | -6/Waste | Crushed by Compactor (1 part destroyed, 1 dropped) 4797 | -6/Waste | Core integrity fell below 50% 4803 | -6/Waste | Core integrity fell below 20% 4806 | -6/Waste | Destroyed C-40 Crusher 4814 | -6/Waste | Spotted C-40 Crusher 4814 | -6/Waste | Spotted C-40 Crusher 4814 | -6/Waste | Spotted C-40 Crusher 4814 | -6/Waste | Spotted C-40 Crusher 4821 | -6/Waste | Lost 6 parts (2n2u2w) 4845 | -6/Waste | Discovered new exit (range 12) 4857 | -6/Waste | Entered Factory 4869 | -6/Factory | Identified exit to Lower Caves 5066 | -6/Factory | Destroyed by Y-54 Guardian with Flak Gun Last Messages --------------- 04869_ Current location identified: Factory >>Access(Branch) Found 2 branch access points: (142,16) Lower Caves (129,59) Lower Caves Map updated. >>Alert(Check) Current Alert Level: Low Security 04874_ 4 2QOB/FIASPY5&FGJ6N3 04897_ Y-54 Guardian destroyed. 04916_ Acquired Imp. Light Armor Plating. 04920_ Acquired Imp. Heat Sink. 04923_ Acquired Gatling Laser. 04924_ Acquired 75 matter. 04927_ Acquired Imp. Heat Sink. 04930_ Acquired Magnetic Acceleration Cannon. 04936_ K-01 Serf collects debris. 05020_ CAQXHVR 0G6G B9NXUJ